[Event "GrandPrix_29.05"]
[Site "Chess.com"]
[Date "2020.05.29"]
[Round "6"]
[White "VolodymyrMolyboha"]
[Black "iceboy88"]
[Result "0-1"]
[WhiteElo "2271"]
[BlackElo "2487"]
[TimeControl "600+2"]
[EndTime "12:06:31 PDT"]
[Termination "iceboy88 won by resignation"]

1. e4 {[%clk 0:09:58.8]} 1... c6 {[%clk 0:09:57.6]} 2. d4 {[%clk 0:09:58.2]}
2... d5 {[%clk 0:09:58.6]} 3. exd5 {[%clk 0:09:58.8]} 3... cxd5 {[%clk
0:09:59.9]} 4. Bd3 {[%clk 0:10:00.1]} 4... Nc6 {[%clk 0:10:00.3]} 5. c3 {[%clk
0:10:00.5]} 5... Qc7 {[%clk 0:09:57.9]} 6. Ne2 {[%clk 0:10:00.7]} 6... Bg4
{[%clk 0:09:58.4]} 7. O-O {[%clk 0:10:01.3]} 7... e6 {[%clk 0:09:56.6]} 8. Qe1
{[%clk 0:10:02.1]} 8... Nf6 {[%clk 0:09:48.1]} 9. f3 {[%clk 0:10:01.6]} 9... Bh5
{[%clk 0:09:48.6]} 10. Qh4 {[%clk 0:10:01.9]} 10... Rg8 {[%clk 0:09:44.4]} 11.
Bg5 {[%clk 0:09:59.9]} 11... Bg6 {[%clk 0:09:34.2]} 12. Bxg6 {[%clk 0:09:57.4]}
12... hxg6 {[%clk 0:09:33.4]} 13. a4 {[%clk 0:09:17]} 13... O-O-O {[%clk
0:09:11.5]} 14. Na3 {[%clk 0:09:16.7]} 14... a6 {[%clk 0:09:02.9]} 15. Bf4
{[%clk 0:08:07.9]} 15... Bd6 {[%clk 0:08:58.7]} 16. Bxd6 {[%clk 0:08:02.6]}
16... Qxd6 {[%clk 0:08:59.2]} 17. Qf4 {[%clk 0:08:03.7]} 17... Qxf4 {[%clk
0:08:33.7]} 18. Nxf4 {[%clk 0:08:04]} 18... Ne8 {[%clk 0:08:20.7]} 19. Nd3
{[%clk 0:07:38.9]} 19... Nd6 {[%clk 0:08:14.7]} 20. Rfe1 {[%clk 0:07:23.5]}
20... b6 {[%clk 0:08:01.8]} 21. Re2 {[%clk 0:07:07.5]} 21... Kb7 {[%clk
0:08:01]} 22. h3 {[%clk 0:06:53.3]} 22... Rc8 {[%clk 0:07:12.1]} 23. Nc2 {[%clk
0:06:37.4]} 23... Rc7 {[%clk 0:06:17.1]} 24. Ne3 {[%clk 0:06:32.9]} 24... Rb8
{[%clk 0:05:18.2]} 25. Ng4 {[%clk 0:06:21.8]} 25... Kc8 {[%clk 0:05:12.9]} 26.
Kf2 {[%clk 0:05:47.9]} 26... Kd7 {[%clk 0:05:01.1]} 27. Ne3 {[%clk 0:05:26.3]}
27... Na5 {[%clk 0:04:38.4]} 28. Ne5+ {[%clk 0:04:55.2]} 28... Kd8 {[%clk
0:04:36.8]} 29. Nd3 {[%clk 0:04:50.4]} 29... Nac4 {[%clk 0:04:29.4]} 30. Ng4
{[%clk 0:04:26.3]} 30... Ke7 {[%clk 0:04:09.2]} 31. Ne3 {[%clk 0:04:10.6]} 31...
Nxe3 {[%clk 0:04:06.9]} 32. Rxe3 {[%clk 0:04:05.9]} 32... a5 {[%clk 0:03:14.6]}
33. Re2 {[%clk 0:03:50]} 33... Nc4 {[%clk 0:02:58.9]} 34. Ke1 {[%clk 0:03:21.1]}
34... g5 {[%clk 0:02:47.2]} 35. Kd1 {[%clk 0:02:53.4]} 35... f6 {[%clk
0:02:02.8]} 36. Kc2 {[%clk 0:02:35.5]} 36... Kf7 {[%clk 0:02:02.9]} 37. Rae1
{[%clk 0:02:22.5]} 37... Re8 {[%clk 0:01:59.2]} 38. Ra1 {[%clk 0:01:50.4]} 38...
Nd6 {[%clk 0:01:54.7]} 39. Kd2 {[%clk 0:01:11.7]} 39... Rc4 {[%clk 0:01:43.1]}
40. Kc2 {[%clk 0:00:38.3]} 40... Nf5 {[%clk 0:01:33.9]} 41. Kd2 {[%clk
0:00:32.5]} 41... Rec8 {[%clk 0:01:31.3]} 42. Ree1 {[%clk 0:00:28.1]} 42... R4c6
{[%clk 0:01:24.1]} 43. Ra3 {[%clk 0:00:14.6]} 43... Nd6 {[%clk 0:01:21.6]} 44.
Rb3 {[%clk 0:00:13.7]} 44... Nc4+ {[%clk 0:01:11.1]} 45. Kc2 {[%clk 0:00:13.7]}
45... Ke7 {[%clk 0:01:02.9]} 46. Re2 {[%clk 0:00:14.6]} 46... Kd7 {[%clk
0:01:03.8]} 47. Kb1 {[%clk 0:00:15.5]} 47... Rh8 {[%clk 0:01:02]} 48. Rb5 {[%clk
0:00:12.8]} 48... Rh4 {[%clk 0:00:47.2]} 49. Rb3 {[%clk 0:00:12.7]} 49... Rh7
{[%clk 0:00:46.1]} 50. Rb5 {[%clk 0:00:13.5]} 50... Rh8 {[%clk 0:00:47.4]} 51.
Rb3 {[%clk 0:00:14.3]} 51... Rb8 {[%clk 0:00:43.6]} 52. Ka2 {[%clk 0:00:14.4]}
52... Rb7 {[%clk 0:00:39.3]} 53. Nc5+ {[%clk 0:00:14.5]} 53... Rxc5 {[%clk
0:00:31.5]} 54. dxc5 {[%clk 0:00:14.9]} 54... e5 {[%clk 0:00:24.8]} 55. cxb6
{[%clk 0:00:15.3]} 55... Kc6 {[%clk 0:00:23.6]} 56. Rb5 {[%clk 0:00:15.8]} 56...
f5 {[%clk 0:00:20.4]} 57. b3 {[%clk 0:00:13.4]} 57... Nd6 {[%clk 0:00:20.7]} 58.
Rxa5 {[%clk 0:00:11.8]} 58... e4 {[%clk 0:00:19.9]} 59. b4 {[%clk 0:00:08.1]}
59... Rxb6 {[%clk 0:00:17.9]} 60. Rc5+ {[%clk 0:00:08.7]} 60... Kd7 {[%clk
0:00:18.8]} 61. Rxd5 {[%clk 0:00:09.8]} 61... Ke6 {[%clk 0:00:20.3]} 62. fxe4
{[%clk 0:00:10.4]} 62... Nxe4 {[%clk 0:00:21.5]} 63. Rd3 {[%clk 0:00:07]} 63...
Kf6 {[%clk 0:00:22.8]} 64. Kb3 {[%clk 0:00:07.5]} 64... Nc5+ {[%clk 0:00:22.9]}
65. Kc4 {[%clk 0:00:07.8]} 65... Nxa4 {[%clk 0:00:23.7]} 66. Rd5 {[%clk
0:00:06.2]} 66... Rc6+ {[%clk 0:00:21.6]} 67. Kb3 {[%clk 0:00:03.8]} 67... Nxc3
{[%clk 0:00:20.7]} 68. Red2 {[%clk 0:00:03.9]} 68... Nxd5 {[%clk 0:00:20.9]} 69.
Rxd5 {[%clk 0:00:04.9]} 69... Ke6 {[%clk 0:00:19.9]} 70. Rd2 {[%clk 0:00:04.6]}
70... Rc1 {[%clk 0:00:16.4]} 71. b5 {[%clk 0:00:04.9]} 71... Rb1+ {[%clk
0:00:16.5]} 72. Kc4 {[%clk 0:00:05.9]} 72... f4 {[%clk 0:00:16.2]} 73. Kc5
{[%clk 0:00:06.1]} 73... Rc1+ {[%clk 0:00:08.7]} 74. Kb6 {[%clk 0:00:06.8]}
74... Rc3 {[%clk 0:00:09.5]} 75. Kb7 {[%clk 0:00:06.9]} 75... f3 {[%clk
0:00:10.1]} 76. gxf3 {[%clk 0:00:07.3]} 76... Rxf3 {[%clk 0:00:11.3]} 77. Rb2
{[%clk 0:00:06.6]} 77... Rxh3 {[%clk 0:00:12.3]} 78. b6 {[%clk 0:00:08]} 78...
Rc3 {[%clk 0:00:11.1]} 79. Ka8 {[%clk 0:00:07.8]} 79... Ra3+ {[%clk 0:00:11]}
80. Kb8 {[%clk 0:00:08.9]} 80... Rc3 {[%clk 0:00:10.3]} 81. b7 {[%clk
0:00:09.9]} 81... Kd7 {[%clk 0:00:10.5]} 82. Ka7 {[%clk 0:00:10.3]} 82... Rc7
{[%clk 0:00:11]} 83. Rd2+ {[%clk 0:00:10]} 83... Ke6 {[%clk 0:00:11.6]} 84. Kb6
{[%clk 0:00:11.1]} 84... Rxb7+ {[%clk 0:00:12]} 85. Kxb7 {[%clk 0:00:12.3]}
85... g4 {[%clk 0:00:12.7]} 86. Kc6 {[%clk 0:00:12.9]} 86... Ke5 {[%clk
0:00:14.2]} 87. Kc5 {[%clk 0:00:12.2]} 87... Ke4 {[%clk 0:00:14.6]} 88. Kc4
{[%clk 0:00:11.9]} 88... g3 {[%clk 0:00:14.5]} 89. Rd7 {[%clk 0:00:11.9]} 89...
g5 {[%clk 0:00:15.3]} 90. Re7+ {[%clk 0:00:11.8]} 90... Kf3 {[%clk 0:00:16.4]}
91. Kd3 {[%clk 0:00:12.5]} 91... g2 {[%clk 0:00:17.3]} 92. Re1 {[%clk
0:00:12.5]} 92... Kf2 {[%clk 0:00:16.2]} 93. Re2+ {[%clk 0:00:09.7]} 93... Kf1
{[%clk 0:00:16.5]} 94. Ra2 {[%clk 0:00:10.5]} 94... g4 {[%clk 0:00:14.1]} 95.
Ke3 {[%clk 0:00:11.2]} 95... g1=Q+ {[%clk 0:00:15]} 96. Kf4 {[%clk 0:00:12]}
96... Qd4+ {[%clk 0:00:16.1]} 97. Kg3 {[%clk 0:00:12.6]} 97... Qe5+ {[%clk
0:00:16.3]} 98. Kxg4 {[%clk 0:00:13.5]} 98... Qe6+ {[%clk 0:00:17.6]} 0-1

[Event "GrandPrix_29.05"]
[Site "Chess.com"]
[Date "2020.05.29"]
[Round "6"]
[White "OK97"]
[Black "VincentKeymer"]
[Result "0-1"]
[WhiteElo "2504"]
[BlackElo "2595"]
[TimeControl "600+2"]
[EndTime "12:06:36 PDT"]
[Termination "VincentKeymer won by resignation"]

1. e4 {[%clk 0:10:01.9]} 1... e6 {[%clk 0:10:00.5]} 2. d4 {[%clk 0:10:01.5]}
2... d5 {[%clk 0:10:01.6]} 3. Nc3 {[%clk 0:10:01.9]} 3... Nf6 {[%clk 0:10:01.8]}
4. Bg5 {[%clk 0:10:02.4]} 4... Bb4 {[%clk 0:10:02.5]} 5. e5 {[%clk 0:09:52.9]}
5... h6 {[%clk 0:10:03]} 6. Bd2 {[%clk 0:09:32.7]} 6... Bxc3 {[%clk 0:10:03]} 7.
bxc3 {[%clk 0:09:34.3]} 7... Ne4 {[%clk 0:10:04.3]} 8. Qg4 {[%clk 0:09:33.9]}
8... Kf8 {[%clk 0:10:04.3]} 9. Bc1 {[%clk 0:09:28.2]} 9... c5 {[%clk 0:09:57.1]}
10. Ne2 {[%clk 0:08:18.6]} 10... Qa5 {[%clk 0:09:21.3]} 11. f3 {[%clk
0:07:26.6]} 11... Nxc3 {[%clk 0:09:16.6]} 12. Bd2 {[%clk 0:07:26.4]} 12... cxd4
{[%clk 0:09:17.9]} 13. Nxd4 {[%clk 0:07:03.5]} 13... Qc7 {[%clk 0:08:40.7]} 14.
Nxe6+ {[%clk 0:06:57.1]} 14... Bxe6 {[%clk 0:08:41.4]} 15. Qb4+ {[%clk 0:06:58]}
15... Kg8 {[%clk 0:08:37.9]} 16. Qxc3 {[%clk 0:06:36.9]} 16... Nc6 {[%clk
0:08:37.9]} 17. f4 {[%clk 0:05:55.8]} 17... d4 {[%clk 0:08:29.8]} 18. Qf3 {[%clk
0:05:42.9]} 18... g6 {[%clk 0:07:55.2]} 19. Bd3 {[%clk 0:05:38]} 19... Qd7
{[%clk 0:07:49.4]} 20. O-O {[%clk 0:05:32.8]} 20... Bf5 {[%clk 0:07:40.2]} 21.
Rab1 {[%clk 0:05:22.8]} 21... Kh7 {[%clk 0:07:34.4]} 22. Rb3 {[%clk 0:04:16.8]}
22... b6 {[%clk 0:07:06.8]} 23. h3 {[%clk 0:03:53.4]} 23... Rhg8 {[%clk
0:05:50.1]} 24. g4 {[%clk 0:03:09.9]} 24... Bxd3 {[%clk 0:05:48.7]} 25. Rxd3
{[%clk 0:03:04.5]} 25... Rad8 {[%clk 0:05:41.9]} 26. f5 {[%clk 0:00:56.5]} 26...
gxf5 {[%clk 0:05:22]} 27. Qxf5+ {[%clk 0:00:57.2]} 27... Qxf5 {[%clk 0:05:22.8]}
28. Rxf5 {[%clk 0:00:59.1]} 28... Rd7 {[%clk 0:05:17]} 29. Rdf3 {[%clk
0:00:58.6]} 29... Nd8 {[%clk 0:05:12.9]} 30. Rh5 {[%clk 0:00:38.6]} 30... Rg6
{[%clk 0:04:49.9]} 31. Rf6 {[%clk 0:00:11.2]} 31... Ne6 {[%clk 0:04:22.7]} 32.
Bxh6 {[%clk 0:00:10.2]} 32... Rxf6 {[%clk 0:04:23.8]} 33. exf6 {[%clk
0:00:11.2]} 33... Kg6 {[%clk 0:04:20.5]} 34. Bd2 {[%clk 0:00:04.1]} 34... Kxf6
{[%clk 0:04:15.7]} 35. Rf5+ {[%clk 0:00:05.4]} 35... Kg7 {[%clk 0:04:08.1]} 36.
Rf2 {[%clk 0:00:05.8]} 36... Rc7 {[%clk 0:04:06.6]} 37. Bc1 {[%clk 0:00:04.9]}
37... Rc5 {[%clk 0:03:54.5]} 38. h4 {[%clk 0:00:05.7]} 38... Kg8 {[%clk
0:03:54]} 39. Kg2 {[%clk 0:00:04.5]} 39... d3 {[%clk 0:03:54.3]} 40. h5 {[%clk
0:00:03.1]} 40... Nd4 {[%clk 0:03:46.1]} 41. Bb2 {[%clk 0:00:02.6]} 41... dxc2
{[%clk 0:03:39.3]} 42. Rd2 {[%clk 0:00:03.8]} 42... Ne6 {[%clk 0:03:32.8]} 43.
Bc1 {[%clk 0:00:05.3]} 43... Rc4 {[%clk 0:03:30.4]} 44. Kg3 {[%clk 0:00:05.6]}
44... Nd4 {[%clk 0:03:24.8]} 45. g5 {[%clk 0:00:04.2]} 45... b5 {[%clk
0:03:08.8]} 46. Kf2 {[%clk 0:00:05.3]} 46... a5 {[%clk 0:03:01.5]} 47. Ke3
{[%clk 0:00:06.5]} 47... Ne6 {[%clk 0:02:59.9]} 48. g6 {[%clk 0:00:06.3]} 48...
fxg6 {[%clk 0:03:00]} 49. hxg6 {[%clk 0:00:08.2]} 49... Kg7 {[%clk 0:02:56.7]}
50. Rd6 {[%clk 0:00:08.7]} 50... Kf6 {[%clk 0:02:01.1]} 51. g7 {[%clk
0:00:09.1]} 51... Rg4 {[%clk 0:02:01.9]} 52. Bb2+ {[%clk 0:00:09.3]} 52... Ke7
{[%clk 0:02:00.5]} 53. Rc6 {[%clk 0:00:09.5]} 53... Nxg7 {[%clk 0:01:27.7]} 54.
Bxg7 {[%clk 0:00:09.8]} 54... Rxg7 {[%clk 0:01:20.8]} 55. Rxc2 {[%clk
0:00:10.9]} 55... Ke6 {[%clk 0:01:15.7]} 56. Kd4 {[%clk 0:00:10.2]} 56... Rd7+
{[%clk 0:01:16.2]} 57. Ke4 {[%clk 0:00:11.6]} 57... Kd6 {[%clk 0:01:07]} 58. Kd4
{[%clk 0:00:11]} 58... Rh7 {[%clk 0:01:05.6]} 59. Rg2 {[%clk 0:00:11.6]} 59...
Rh4+ {[%clk 0:01:05.5]} 60. Kc3 {[%clk 0:00:12.5]} 60... Rh3+ {[%clk 0:01:04.4]}
61. Kb2 {[%clk 0:00:13.8]} 61... Kc5 {[%clk 0:01:01.5]} 62. Rg5+ {[%clk
0:00:13.7]} 62... Kc6 {[%clk 0:01:01.4]} 63. Rg6+ {[%clk 0:00:14.3]} 63... Kc7
{[%clk 0:01:02.1]} 64. Rg7+ {[%clk 0:00:13.2]} 64... Kd6 {[%clk 0:01:02.9]} 65.
Rg6+ {[%clk 0:00:14.2]} 65... Kd5 {[%clk 0:01:02.8]} 66. Rg5+ {[%clk 0:00:14.5]}
66... Kc4 {[%clk 0:01:04.3]} 67. Rg4+ {[%clk 0:00:13.9]} 67... Kd3 {[%clk
0:01:04.3]} 68. Rg5 {[%clk 0:00:15.4]} 68... Rh2+ {[%clk 0:01:01]} 69. Kb3
{[%clk 0:00:15.1]} 69... a4+ {[%clk 0:01:01.6]} 70. Ka3 {[%clk 0:00:12.5]} 70...
Kc4 {[%clk 0:01:01.2]} 71. Rg4+ {[%clk 0:00:10.1]} 71... Kc5 {[%clk 0:01:00.4]}
72. Rg6 {[%clk 0:00:04.7]} 72... Rh3+ {[%clk 0:00:50.4]} 73. Kb2 {[%clk
0:00:05.6]} 73... a3+ {[%clk 0:00:51.4]} 74. Kc2 {[%clk 0:00:05.3]} 74... Kb4
{[%clk 0:00:50.4]} 75. Rg4+ {[%clk 0:00:06]} 75... Ka5 {[%clk 0:00:51.3]} 76.
Rf4 {[%clk 0:00:04.8]} 76... Rh2+ {[%clk 0:00:42.5]} 77. Kb3 {[%clk 0:00:04.9]}
77... Rh3+ {[%clk 0:00:41.4]} 78. Kc2 {[%clk 0:00:06.1]} 78... Rg3 {[%clk
0:00:40.5]} 79. Re4 {[%clk 0:00:06.7]} 79... Rg1 {[%clk 0:00:38.3]} 80. Kb3
{[%clk 0:00:06.1]} 80... Rg3+ {[%clk 0:00:31.9]} 81. Kc2 {[%clk 0:00:07.4]}
81... b4 {[%clk 0:00:27.6]} 82. Re5+ {[%clk 0:00:05.3]} 82... Ka4 {[%clk
0:00:28.4]} 83. Re4 {[%clk 0:00:06.8]} 83... Rg2+ {[%clk 0:00:28.6]} 84. Kb1
{[%clk 0:00:06.1]} 84... Rg1+ {[%clk 0:00:29.5]} 85. Kc2 {[%clk 0:00:04.9]}
85... Ra1 {[%clk 0:00:31]} 86. Re8 {[%clk 0:00:03.6]} 86... Rxa2+ {[%clk
0:00:32]} 87. Kb1 {[%clk 0:00:04]} 87... Rh2 {[%clk 0:00:32.6]} 88. Re1 {[%clk
0:00:03.4]} 88... Rh3 {[%clk 0:00:32.9]} 89. Rf1 {[%clk 0:00:04.5]} 89... Kb3
{[%clk 0:00:33.1]} 90. Rg1 {[%clk 0:00:05.4]} 90... Rc3 {[%clk 0:00:30.4]} 91.
Rf1 {[%clk 0:00:05.6]} 91... Ka4 {[%clk 0:00:30.5]} 92. Rg1 {[%clk 0:00:06.1]}
92... Rc4 {[%clk 0:00:31.6]} 93. Rf1 {[%clk 0:00:07]} 93... b3 {[%clk
0:00:31.4]} 94. Rg1 {[%clk 0:00:08.5]} 94... Rh4 {[%clk 0:00:31.9]} 95. Rf1
{[%clk 0:00:09.5]} 95... Kb4 {[%clk 0:00:32.1]} 96. Rg1 {[%clk 0:00:10.4]} 96...
Rh3 {[%clk 0:00:32.7]} 97. Rf1 {[%clk 0:00:11.6]} 97... a2+ {[%clk 0:00:26.6]}
98. Ka1 {[%clk 0:00:12.6]} 98... Ka3 {[%clk 0:00:26.2]} 99. Rf3 {[%clk
0:00:04.6]} 99... Rh1+ {[%clk 0:00:26.3]} 0-1

[Event "GrandPrix_29.05"]
[Site "Chess.com"]
[Date "2020.05.29"]
[Round "7"]
[White "Cocolino12"]
[Black "tianachess"]
[Result "1/2-1/2"]
[WhiteElo "2250"]
[BlackElo "2037"]
[TimeControl "600+2"]
[EndTime "12:11:35 PDT"]
[Termination "Game drawn by agreement"]

1. e4 {[%clk 0:10:01.9]} 1... Nf6 {[%clk 0:09:59.4]} 2. Nc3 {[%clk 0:10:01.6]}
2... d5 {[%clk 0:09:58.5]} 3. e5 {[%clk 0:10:02.5]} 3... d4 {[%clk 0:09:57.1]}
4. Nce2 {[%clk 0:10:03.3]} 4... Nfd7 {[%clk 0:09:56.3]} 5. f4 {[%clk 0:10:00.6]}
5... c5 {[%clk 0:09:56]} 6. Nf3 {[%clk 0:10:00.9]} 6... e6 {[%clk 0:09:56.2]} 7.
g3 {[%clk 0:10:00.5]} 7... Nc6 {[%clk 0:09:50.6]} 8. Bg2 {[%clk 0:10:01.1]} 8...
Be7 {[%clk 0:09:45.4]} 9. O-O {[%clk 0:10:00.6]} 9... O-O {[%clk 0:09:43.8]} 10.
d3 {[%clk 0:10:01.5]} 10... f6 {[%clk 0:09:36.1]} 11. exf6 {[%clk 0:09:58.9]}
1/2-1/2

[Event "GrandPrix_29.05"]
[Site "Chess.com"]
[Date "2020.05.29"]
[Round "7"]
[White "Hero_in_my_life"]
[Black "Vnebo"]
[Result "0-1"]
[WhiteElo "2093"]
[BlackElo "2049"]
[TimeControl "600+2"]
[EndTime "12:15:41 PDT"]
[Termination "Vnebo won by resignation"]

1. c4 {[%clk 0:10:01.9]} 1... e6 {[%clk 0:09:59]} 2. d4 {[%clk 0:10:00.9]} 2...
d5 {[%clk 0:09:59.5]} 3. Nf3 {[%clk 0:09:59.2]} 3... Nf6 {[%clk 0:10:00.4]} 4.
g3 {[%clk 0:09:59.1]} 4... Be7 {[%clk 0:10:01.5]} 5. Bg2 {[%clk 0:09:59.5]} 5...
O-O {[%clk 0:10:02.2]} 6. O-O {[%clk 0:10:00.1]} 6... c6 {[%clk 0:10:01]} 7. Qd3
{[%clk 0:09:50.8]} 7... b6 {[%clk 0:09:58.7]} 8. Nc3 {[%clk 0:09:50.1]} 8... Ba6
{[%clk 0:09:56.6]} 9. b3 {[%clk 0:09:49.6]} 9... Nbd7 {[%clk 0:09:57.1]} 10. e4
{[%clk 0:09:46.9]} 10... Rc8 {[%clk 0:09:55.7]} 11. Bb2 {[%clk 0:09:19.9]} 11...
Qc7 {[%clk 0:09:09.7]} 12. Rac1 {[%clk 0:09:09.5]} 12... Qb7 {[%clk 0:09:03.6]}
13. h4 {[%clk 0:08:39.3]} 13... b5 {[%clk 0:08:51.5]} 14. cxb5 {[%clk
0:08:24.6]} 14... cxb5 {[%clk 0:08:50.4]} 15. Qb1 {[%clk 0:07:52.8]} 15... b4
{[%clk 0:08:48.1]} 16. Na4 {[%clk 0:07:51.5]} 16... Bxf1 {[%clk 0:08:44.9]} 17.
Rxf1 {[%clk 0:07:52]} 17... Nxe4 {[%clk 0:08:44]} 18. h5 {[%clk 0:07:37.9]}
18... h6 {[%clk 0:08:32.5]} 19. Ne5 {[%clk 0:07:19]} 19... Nd2 {[%clk
0:08:18.8]} 0-1

[Event "GrandPrix_29.05"]
[Site "Chess.com"]
[Date "2020.05.29"]
[Round "7"]
[White "Andrei_Belozerov"]
[Black "Nodar_Lortkipanidze"]
[Result "0-1"]
[WhiteElo "2564"]
[BlackElo "2615"]
[TimeControl "600+2"]
[EndTime "12:15:43 PDT"]
[Termination "Nodar_Lortkipanidze won by checkmate"]

1. e4 {[%clk 0:10:01.9]} 1... e6 {[%clk 0:09:56.8]} 2. d4 {[%clk 0:10:02.3]}
2... d5 {[%clk 0:09:58.3]} 3. Nd2 {[%clk 0:10:03.9]} 3... Nc6 {[%clk 0:09:55.1]}
4. Ngf3 {[%clk 0:10:03.8]} 4... Nf6 {[%clk 0:09:56.2]} 5. e5 {[%clk 0:10:04.8]}
5... Nd7 {[%clk 0:09:57.6]} 6. c3 {[%clk 0:09:53.7]} 6... f6 {[%clk 0:09:58.3]}
7. exf6 {[%clk 0:09:50]} 7... Qxf6 {[%clk 0:10:00.2]} 8. Bb5 {[%clk 0:09:26]}
8... Bd6 {[%clk 0:09:58.4]} 9. Nf1 {[%clk 0:09:20.3]} 9... O-O {[%clk
0:09:43.8]} 10. Ne3 {[%clk 0:09:20.1]} 10... Qg6 {[%clk 0:09:32.1]} 11. O-O
{[%clk 0:08:37.1]} 11... Nf6 {[%clk 0:08:26.6]} 12. c4 {[%clk 0:08:16.9]} 12...
dxc4 {[%clk 0:08:25.2]} 13. Nxc4 {[%clk 0:08:13]} 13... Bd7 {[%clk 0:08:05.3]}
14. Bxc6 {[%clk 0:07:05.7]} 14... Bxc6 {[%clk 0:08:05.1]} 15. Nfe5 {[%clk
0:07:06.5]} 15... Qxg2# {[%clk 0:08:05.3]} 0-1

[Event "GrandPrix_29.05"]
[Site "Chess.com"]
[Date "2020.05.29"]
[Round "7"]
[White "Semen_Khanin"]
[Black "fm_magua"]
[Result "1-0"]
[WhiteElo "2375"]
[BlackElo "1844"]
[TimeControl "600+2"]
[EndTime "12:15:55 PDT"]
[Termination "Semen_Khanin won by resignation"]

1. d4 {[%clk 0:10:01.9]} 1... Nf6 {[%clk 0:10:00.8]} 2. c4 {[%clk 0:10:01.7]}
2... g6 {[%clk 0:10:02.1]} 3. Nc3 {[%clk 0:10:00.6]} 3... Bg7 {[%clk 0:10:03.7]}
4. e4 {[%clk 0:10:01.3]} 4... O-O {[%clk 0:10:03.7]} 5. Be2 {[%clk 0:10:01.9]}
5... d6 {[%clk 0:10:05.2]} 6. Be3 {[%clk 0:10:03.4]} 6... e5 {[%clk 0:10:06.3]}
7. d5 {[%clk 0:10:04.4]} 7... a5 {[%clk 0:10:07.3]} 8. g4 {[%clk 0:10:04.7]}
8... Na6 {[%clk 0:10:08.2]} 9. h4 {[%clk 0:10:05.1]} 9... Nc5 {[%clk 0:10:09.3]}
10. f3 {[%clk 0:10:06]} 10... c6 {[%clk 0:10:08.9]} 11. h5 {[%clk 0:09:54.9]}
11... cxd5 {[%clk 0:10:09.4]} 12. cxd5 {[%clk 0:09:52.7]} 12... b5 {[%clk
0:10:10.3]} 13. Bxb5 {[%clk 0:09:36.5]} 13... Ba6 {[%clk 0:10:11.1]} 14. a4
{[%clk 0:09:34.4]} 14... Nfd7 {[%clk 0:10:09.7]} 15. Nge2 {[%clk 0:09:24.6]}
15... Bf6 {[%clk 0:09:58]} 16. Kf2 {[%clk 0:08:52.4]} 16... Bh4+ {[%clk
0:09:55.7]} 17. Kg2 {[%clk 0:08:51.7]} 17... f5 {[%clk 0:09:56.8]} 18. hxg6
{[%clk 0:08:02.7]} 18... hxg6 {[%clk 0:09:57.3]} 19. Qg1 {[%clk 0:07:59.2]}
19... Bxb5 {[%clk 0:09:45.4]} 20. axb5 {[%clk 0:07:59.6]} 20... Nd3 {[%clk
0:09:36.4]} 21. exf5 {[%clk 0:07:24.4]} 21... gxf5 {[%clk 0:09:35]} 22. Qh2
{[%clk 0:07:24.9]} 22... fxg4 {[%clk 0:09:18.4]} 23. fxg4 {[%clk 0:07:22.3]}
23... Qf6 {[%clk 0:09:19.2]} 24. Raf1 {[%clk 0:07:20.2]} 24... Nf4+ {[%clk
0:09:20.4]} 25. Nxf4 {[%clk 0:06:56.6]} 25... exf4 {[%clk 0:09:21.5]} 26. Rxf4
{[%clk 0:06:57.1]} 26... Qe5 {[%clk 0:09:05.5]} 27. Qxh4 {[%clk 0:06:54.4]}
27... Rxf4 {[%clk 0:09:06.5]} 28. Qh7+ {[%clk 0:06:54.6]} 28... Kf8 {[%clk
0:09:07.5]} 29. Bxf4 {[%clk 0:06:56]} 29... Qxf4 {[%clk 0:09:07]} 30. Rf1 {[%clk
0:06:56.4]} 1-0

[Event "GrandPrix_29.05"]
[Site "Chess.com"]
[Date "2020.05.29"]
[Round "7"]
[White "EvgenyRomanov"]
[Black "monalize"]
[Result "1-0"]
[WhiteElo "2135"]
[BlackElo "1958"]
[TimeControl "600+2"]
[EndTime "12:16:04 PDT"]
[Termination "EvgenyRomanov won by resignation"]

1. d4 {[%clk 0:10:01.9]} 1... Nf6 {[%clk 0:09:58.8]} 2. c4 {[%clk 0:10:03.8]}
2... d6 {[%clk 0:09:59.8]} 3. Nc3 {[%clk 0:10:01.5]} 3... e5 {[%clk 0:10:00.1]}
4. Nf3 {[%clk 0:09:58.1]} 4... Nbd7 {[%clk 0:09:59.8]} 5. Bg5 {[%clk 0:09:54.8]}
5... h6 {[%clk 0:09:58.6]} 6. Bh4 {[%clk 0:09:51.4]} 6... c6 {[%clk 0:09:50.1]}
7. e3 {[%clk 0:09:46.5]} 7... Be7 {[%clk 0:09:49.8]} 8. Qc2 {[%clk 0:09:46.2]}
8... O-O {[%clk 0:09:46.4]} 9. O-O-O {[%clk 0:09:38]} 9... Qa5 {[%clk
0:09:41.9]} 10. g4 {[%clk 0:09:22.7]} 10... Re8 {[%clk 0:09:21.8]} 11. Rg1
{[%clk 0:09:19.3]} 11... exd4 {[%clk 0:08:15.5]} 12. Nxd4 {[%clk 0:08:31.1]}
12... Ne5 {[%clk 0:08:08.9]} 13. g5 {[%clk 0:08:25.7]} 13... Nh7 {[%clk
0:07:53.1]} 14. gxh6 {[%clk 0:08:06.5]} 14... g5 {[%clk 0:07:48.8]} 15. f4
{[%clk 0:07:47]} 15... Ng6 {[%clk 0:07:48.1]} 16. Bf2 {[%clk 0:07:45.8]} 16...
gxf4 {[%clk 0:07:22.3]} 17. Rxg6+ {[%clk 0:07:41.8]} 1-0

[Event "GrandPrix_29.05"]
[Site "Chess.com"]
[Date "2020.05.29"]
[Round "7"]
[White "Lavrov_Maxim"]
[Black "NikolaGry"]
[Result "1/2-1/2"]
[WhiteElo "2280"]
[BlackElo "2087"]
[TimeControl "600+2"]
[EndTime "12:16:43 PDT"]
[Termination "Game drawn by agreement"]

1. e4 {[%clk 0:10:01.9]} 1... e5 {[%clk 0:09:59.6]} 2. Nf3 {[%clk 0:10:02]} 2...
d6 {[%clk 0:10:00.3]} 3. d4 {[%clk 0:10:01.7]} 3... exd4 {[%clk 0:10:00.8]} 4.
Nxd4 {[%clk 0:10:02.2]} 4... Nf6 {[%clk 0:10:01.4]} 5. Nc3 {[%clk 0:10:02.5]}
5... g6 {[%clk 0:10:01.3]} 6. Bg5 {[%clk 0:09:52.6]} 6... Bg7 {[%clk 0:09:46]}
7. Qd2 {[%clk 0:09:51.9]} 7... h6 {[%clk 0:09:41.3]} 8. Bf4 {[%clk 0:09:48.6]}
8... g5 {[%clk 0:09:35.4]} 9. Bg3 {[%clk 0:09:47.3]} 9... Nh5 {[%clk 0:09:30.3]}
10. O-O-O {[%clk 0:09:39.8]} 10... Nc6 {[%clk 0:09:15]} 11. Bb5 {[%clk
0:09:03.9]} 11... Bd7 {[%clk 0:08:20.3]} 12. Bxc6 {[%clk 0:08:41.2]} 12... bxc6
{[%clk 0:08:13.5]} 13. Qe2 {[%clk 0:08:33.3]} 13... Nxg3 {[%clk 0:08:05.2]} 14.
hxg3 {[%clk 0:08:33.4]} 14... O-O {[%clk 0:07:49.9]} 15. f4 {[%clk 0:08:34.3]}
15... Qf6 {[%clk 0:06:58.3]} 1/2-1/2